[Event "SixDays Budapest March IM B 2025"]
[Site "Budapest"]
[Date "2025.03.25"]
[Round "2.5"]
[White "Suder, Jakub"]
[Black "Banerjee, Supratit"]
[Result "1-0"]
[Annotator "TA"]
[ECO "B12"]
[WhiteElo "2347"]
[BlackElo "2250"]
[PlyCount "73"]
[EventDate "2025.03.23"]
[EventCountry "HUN"]
[SourceTitle "playchess.com"]
[Source "ChessBase"]
[SourceQuality "1"]
[TimeControl "5400+30"]

{[%evp 10,73,22,22,16,23,23,24,25,17,13,9,40,0,21,11,19,6,92,8,63,10,43,51,71,70,111,106,172,164,170,169,163,160,167,167,222,224,239,243,289,250,409,417,523,333,566,423,583,473,1038,997,1183,1178,1171,1177,1201,1166,1122,1108,1437,1018,1565,1586,1515,1471]} 1. e4 {[%emt 0:00:03]} c6 {[%emt 0:00:09]} 2. d4 {[%emt 0:00:06]} d5 {[%emt 0:00:06]} 3. e5 {[%emt 0:00:02]} Bf5 {[%emt 0:00:10]} 4. Nd2 {[%emt 0:00:06]} e6 {[%emt 0:00:32]} 5. Nb3 {[%emt 0:00:08]} Nd7 {[%emt 0:00:14]} 6. Nf3 {[%emt 0:00:11]} Qc7 {[%emt 0:00:29] is recently more successful than 6...Ne7. B12: Caro-Kann: Advance Variation.} 7. Be2 {[%emt 0:01:32]} c5 {[%emt 0:00:14]} 8. c3 {[%emt 0:01:11]} h6 {[%emt 0:00:06] White has an edge.} 9. O-O {[%emt 0:00:20]} c4 {[%emt 0:01:00]} 10. Nbd2 {[%emt 0:00:09]} b5 {[%emt 0:05:23]} 11. a3 {[%emt 0:00:55]} a5 {[%emt 0:03:17]} 12. Ne1 {[%emt 0:01:38]} Ne7 {[%emt 0:03:47]} 13. Nc2 {[%emt 0:02:15]} Qb6 $146 {[%emt 0:07:53]} (13... Bh7 $11 {keeps the balance.}) (13... Bh7 14. g4 Nc6 15. f4 f6 16. Ne3 fxe5 17. fxe5 Be7 18. Ng2 g5 19. Nf3 a4 {0-1 Cornette,M (2527)-Ghasi,A (2505) Stafford Wood Green 2025 (9)}) 14. Kh1 {[%emt 0:04:31]} (14. a4 $16) 14... Bh7 {[%emt 0:11:39]} (14... a4 $11) 15. f4 {[%emt 0:04:38]} (15. a4 $1 $14) 15... Bxc2 {[%emt 0:13:40]} 16. Qxc2 {[%emt 0:00:05]} Nf5 {[%emt 0:00:08]} 17. Rf3 {[%emt 0:04:49] Black is on the road to losing.} h5 {[%emt 0:02:48] [#]} 18. Rh3 $1 {[%emt 0:02:31]} Qd8 {[%emt 0:04:54]} (18... g6 $16) 19. g4 $18 {[%emt 0:10:01]} (19. Rxh5 $2 {perishes.} Rxh5 20. Bxh5 Qh4 21. Bxf7+ Kxf7 $19) (19. Bxh5 g6 $16) 19... Nh4 {[%emt 0:07:19]} 20. gxh5 {[%emt 0:06:10]} Nf5 {[%emt 0:02:03]} 21. Nf1 {[%emt 0:06:12]} Qb6 {[%emt 0:05:04]} 22. Bg4 {[%emt 0:04:48]} Nh6 {[%emt 0:00:36]} (22... Ne7 23. Qg2 O-O-O) 23. Bf3 {[%emt 0:01:55]} a4 {[%emt 0:04:21]} 24. Ne3 {[%emt 0:03:12]} O-O-O {[%emt 0:01:55]} 25. f5 {[%emt 0:01:26]} Be7 $2 {[%emt 0:01:05]} (25... Nb8 26. fxe6 Qxe6) 26. Rg3 {[%emt 0:01:47][%cal Bh3g3,Bg3g2,Bg2g6,Bg6g7,Bg7d7][%mdl 32]} Rdg8 {[%emt 0:02:32]} 27. Bd2 {[%emt 0:00:54] [#] Black must now prevent fxe6.} Bh4 $2 {[%emt 0:03:29]} (27... Nxf5 {is a better defense.} 28. Nxf5 exf5 29. Qxf5 (29. Bxd5 Rxh5 30. Bxf7 Qb7+ 31. Rg2 Rgh8 $18) 29... Qe6 30. Qxe6 fxe6) 28. Rg2 {[%emt 0:01:25] White is clearly winning.} Be7 {[%emt 0:02:46]} 29. Rag1 {[%emt 0:00:31]} Bf8 {[%emt 0:00:18]} (29... Qd8 $142 30. Rxg7 Rxg7) 30. fxe6 {[%emt 0:01:46]} fxe6 {[%emt 0:00:18]} 31. Rg6 {[%emt 0:00:17]} Nf7 {[%emt 0:02:52]} 32. Nxd5 {[%emt 0:01:00][%cal Be3d5,Bd5f4,Bf4g6][%mdl 32]} Qa6 {[%emt 0:00:34]} 33. Nf4 {[%emt 0:01:10]} Nd8 {[%emt 0:01:47]} 34. Qe4 {[%emt 0:00:57]} Be7 {[%emt 0:00:38]} 35. Rxg7 {[%emt 0:00:47]} Re8 {[%emt 0:00:36]} 36. Ng6 {[%emt 0:00:33][%csl LRe7,LRh8]} Bf8 {[%emt 0:00:29]} 37. Rxd7 {[%emt 0:00:16] Weighted Error Value: White=0.40/Black=0.92  Mistake:       	White=2     	Black=7      Inaccurate:     	White=2     	Black=4      OK:         	White=11    	Black=5      Best:        	White=2     	---        Strong:       	White=1     	---} 1-0